Workbook

Sheet 交換形LED
A1: 省エネ計算ツール【交換形ＬＥＤベース器具(連続調光形)】
A2: 従来の蛍光灯器具と交換形ＬＥＤベース器具（連続調光形)の省エネ試算ができます。目安としてご活用ください。
A3: 従来の蛍光灯器具 | G3: 交換形ＬＥＤベース器具
A4: ■従来の蛍光灯器具を選んでください。↓（枠内から選択） | G4: ■おすすめの交換形ＬＥＤベース器具です。
B5: ▼ | G5: 特長 | H5: ●ＬＥＤ光源ユニットが交換可能
F6: ※1 | H6: 用途に合わせて明るさ・光色を変更可能
A7: ★(H)タイプを選択すると高照度タイプの交換型LED器具が選択できます。 | H7: ●日立独自の「らくづけバネ」でかんたん取り付け
A8: 品 名 | C8: =IF((VLOOKUP(品名,DATA!$A$4:$AD$102,1,0))="▼","",VLOOKUP(品名,DATA!$A$4:$AD$102,1,0)) ->  | G8: 品 名 | I8: =IF((VLOOKUP(品名,DATA!$A$4:$AD$102,18,0))="","",VLOOKUP(品名,DATA!$A$4:$AD$102,18,0)) -> 
A10: 形 式 | C10: =IF(VLOOKUP(品名,DATA!$A$4:$AD$102,2,0)="","",(VLOOKUP(品名,DATA!$A$4:$AD$102,2,0))) ->  | G10: 形 式 | I10: =IF(VLOOKUP(品名,DATA!$A$4:$AD$102,19,0)="","",VLOOKUP(品名,DATA!$A$4:$AD$102,19,0)) -> 
C11: - | I11: <価格（税別）> | K11: <購入価格(税別)>※2
A12: 価 格 （税別） | G12: 価 格 （税別） | H12: 器具 | I12: =IF((VLOOKUP(品名,DATA!$A$4:$AD$102,22,0))="",0,VLOOKUP(品名,DATA!$A$4:$AD$102,22,0)) -> 0 | J12: 円 | K12: 0 | L12: 円
H13: 光源ﾕﾆｯﾄ | I13: =IF((VLOOKUP(品名,DATA!$A$4:$AD$102,23,0))="",0,VLOOKUP(品名,DATA!$A$4:$AD$102,23,0)) -> 0 | J13: 円 | K13: 0 | L13: 円
H14: 合計 | I14: =SUM(I12:I13) -> 0 | J14: 円 | K14: =SUM(K12:K13) -> 0 | L14: 円
A15: 全光束 ※3 | C15: =IF((VLOOKUP(品名,DATA!$A$4:$AD$102,11,0))="","",VLOOKUP(品名,DATA!$A$4:$AD$102,11,0)) ->  | D15: lm | G15: 器具光束 ※4 | I15: =IF((VLOOKUP(品名,DATA!$A$4:$AD$102,28,0))="","",VLOOKUP(品名,DATA!$A$4:$AD$102,28,0)) ->  | J15: lm
A16: 定格消費電力 ※5 | C16: =IF((VLOOKUP(品名,DATA!$A$4:$AD$102,8,0))="","",VLOOKUP(品名,DATA!$A$4:$AD$102,8,0)) ->  | D16: W | E16: =IF((VLOOKUP(品名,DATA!$A$4:$AD$102,13,0))="","",VLOOKUP(品名,DATA!$A$4:$AD$102,13,0)) ->  | F16: =IF((VLOOKUP(品名,DATA!$A$4:$AD$102,9,0))="","",VLOOKUP(品名,DATA!$A$4:$AD$102,9,0)) ->  | G16: 定格消費電力 ※5 | I16: =IF((VLOOKUP(品名,DATA!$A$4:$AD$102,25,0))="","",VLOOKUP(品名,DATA!$A$4:$AD$102,25,0)) ->  | J16: W | K16: =IF((VLOOKUP(品名,DATA!$A$4:$AD$102,30,0))="","",VLOOKUP(品名,DATA!$A$4:$AD$100,30,0)) ->  | L16: =IF((VLOOKUP(品名,DATA!$A$4:$AD$102,26,0))="","",VLOOKUP(品名,DATA!$A$4:$AD$102,26,0)) -> 
A17: 消費効率 | C17: =IF(C15="","",ROUND(C15/C16,1)) ->  | D17: lm/W | G17: 消費効率 | I17: =IF(I15="","",ROUNDDOWN(I15/I16,1)) ->  | J17: lm/W | K17: 固有エネルギー消費効率
A18: ランプ定格寿命 | C18: =IF((VLOOKUP(品名,DATA!$A$4:$AD$102,10,0))="","",VLOOKUP(品名,DATA!$A$4:$AD$102,10,0)) ->  | D18: 時間 | G18: 光束維持時間 ※6 | I18: =IF((VLOOKUP(品名,DATA!$A$4:$AD$102,27,0))="","",VLOOKUP(品名,DATA!$A$4:$AD$102,27,0)) ->  | J18: 時間
A19: 外観 | G19: 外観
A23: ■試算条件を入力ください。（枠内に入力ください） | G23: ■試算条件を入力ください。（枠内に入力ください）
A25: 使用台数 | C25: 1 | D25: 台 | G25: 使用台数 | I25: 1 | J25: 台
A27: 電力料金 ※7 | C27: 31 | D27: 円/kWh(税込) | E27: ＊任意に変更ができます。 | G27: 電力料金 ※8 | I27: =C27 -> 31 | J27: 円/kWh(税込)
A29: 1日の点灯時間 | C29: 10 | D29: 時間/日 | G29: 1日の点灯時間 | I29: =C29 -> 10 | J29: 時間/日
A31: 年間使用日数 | C31: 300 | D31: 日/年 | G31: 年間使用日数 | I31: =C31 -> 300 | J31: 日/年
A33: 年間点灯時間 | C33: =C29*C31 -> 3000 | D33: 時間/年 ※8 | G33: 年間点灯時間 | I33: =I29*I31 -> 3000 | J33: 時間/年
A35: 年間消費電力 | C35: =IF(C16="",0,IF(F16="",C16*C25*C33/1000,F16*C25*C33/1000)) -> 0 | D35: kWh/年 | G35: 年間消費電力 | I35: =IF(I16="",0,IF(L16="",I16*I25*I33/1000,L16*I25*I33/1000)) -> 0 | J35: kWh/年
A37: ランニングコスト | C37: =IFERROR($C$16*$C$25*$C$27*$C$33/1000,"") ->  | D37: 円/年(税込) | G37: ランニングコスト | I37: =IFERROR($I$16*$I$25*$I$27*$I$33/1000,"") ->  | J37: 円/年(税込) | L37: =IF(OR(K37="-",K37=0),"",IF(K37<0,"低減","アップ")) -> 
A38: ＊ランニングコスト＝年間電力費
A39: 消費税率 | C39: 10 | D39: ％ | G39: イニシャルコスト | I39: =IF(I14=0,0,IF(K14=0,I14*I25,K14*I25))*((100+$C$39)/100) -> 0 | J39: 円（税込） | L39: =IF(OR(K39="-",K39=0),"",IF(K39<0,"低減","アップ")) -> 
I40: =IF(I14=0,"",IF(K14=0,"●積算見積価格の試算です！","●購入価格の試算です！")) -> 
A44: ■試算結果（税込価格での試算になります）
A45: 【結果１】 ランニングコスト比較
C46: ランニングコスト（税込） | E46: 比較
B47: 蛍光灯 | C47: =IF(C37="",0,ROUND(C37,0)) -> 0 | D47: 円/年 | E47: =IF(C47=0,"-",100%) -> -
B48: ＬＥＤ | C48: =IF(I37="",0,ROUND(I37,0)) -> 0 | D48: 円/年 | E48: =IF(OR(C47=0,C48=0),"-",IF((C48/C47)<0,ROUNDDOWN((C48/C47),2),ROUNDUP((C48/C47),2))) -> -
B49: 差額 | C49: =C48-C47 -> 0 | D49: 円/年 | E49: =IF(OR(C47=0,C49=0),"-",IF((C49/C47)<0,ROUNDDOWN((C49/C47),2),ROUNDUP((C49/C47),2))) -> -
B50: =IF(OR(C49=0,C49>0),"","●ＬＥＤなら年間 "&TEXT(-C49,"#,##0")&"円 お得です！") ->  | J50: 0
A52: 【結果２】 イニシャルコスト比較（設備費用）と設備償却
C53: イニシャルコスト（税込） | E53: 設備償却
B54: 蛍光灯 | C54: =IF(C38="",0,ROUND(C38,0)) -> 0 | D54: 円 | E54: =IF(OR($C$37=0,$I$37=0,$C$56=0),"-",IF(($C$39-$I$39)/-($C$37-$I$37)<0,"-",ROUNDUP(($C$39-$I$39)/-($C$37-$I$37),1))) -> -
B55: ＬＥＤ | C55: =IF(I39="",0,ROUND(I39,0)) -> 0 | D55: 円
B56: 差額 | C56: =IF(C54="",0,C55-C54) -> 0 | D56: 円 | F56: ＊設備償却=イニシャルコスト差額÷ランニングコスト差額
A57: ＊イニシャルコストの償却期間は、従来の照明器具費とＬＥＤ照明器具費の差額を、ランニングコストの差額で割り試算しています。 試算条件によっては、
A58: 「一般社団法人日本照明工業会 ガイド111」による適正交換時期や耐用の限度を超える場合がありますが、寿命を保証するものではありません。
A60: ※1 従来の蛍光灯器具を選択すると、同等の明るさのLED照明器具と比較できます。
A61: 明るさ（照度 lx：ルクス）は、照明設計条件により異なりますので、明るさを保証するものではありません。
A62: ※2 購入価格（税別)を入力すると購入価格(税込)での試算となります。『クリア』ボタンでリセットされます。
A63: ※3 全光束は省エネ法のエネルギー消費効率測定方法による、蛍光灯照明器具に装着したランプから出る光の量（lm：ルーメン）を示します。
A64: ※4 器具光束はLED照明器具から放出される光の量（lm：ルーメン）を示します。 明るさ（照度 lx：ルクス）の比較は、照明計算によります。
A65: ※5 定格消費電力、平均消費電力は入力電圧200V時の値です。 照度補正形は平均消費電力（照度補正による電力変化の平均値）で試算しています。
A66: ※6 光束維持時間はLED単体で定められた温度設計に基づいて算出した設計寿命であり、使用環境・使用方法により寿命は異なります。 また、LEDモジュール
A67: としての寿命であり、照明器具としての寿命は他の光源を使用した場合と同様の8～10年です。 LEDモジュールのみの交換はできません。
A68: ※7 年間電力費は電力料金単価31円/kWh（税込）を初期値として計算しています（一般社団法人日本照明工業会 ガイド A139-2024による）。
A69: ※8 年間点灯時間は3,000時間/年を初期値としています（一般社団法人日本照明工業会 ガイド A139-2024「事務所･工場(一般)･店舗」の点灯時間）。
L72: 2026年6月版
C73: =VLOOKUP(品名,DATA!$A$4:$AD$102,3,0) -> KUHAKU | I73: =VLOOKUP(品名,DATA!$A$4:$AD$102,20,0) -> KUHAKULED
B75: 非表示「列」「行」の選択は「ｃｔｒｌ」＋「ｓｈｉｆｔ」＋「矢印キー」

Sheet DATA (hidden)
A1: 【DATE】
A2: 従来器具 | R2: 提案ＬＥＤ器具
A3: 従来品名 | B3: 表示形式 | C3: 従来形式 | D3: 従来画像 | E3: 従来器具 | F3: 従来ランプ | G3: 合計 | H3: 定格消費電力 | I3: 平均消費電力 | J3: 定格寿命 | K3: 全光束 | L3: 消費効率 | M3: 照度補正の場合 | N3: 灯数 | O3: 交換費@ | P3: ランプ@ | R3: 提案ＬＥＤ | S3: 提案表示形式 | T3: 提案形式 | U3: 提案画像 | V3: 器具 | W3: ランプ | X3: 合計 | Y3: 定格消費電力 | Z3: 平均消費電力 | AA3: 定格寿命 | AB3: 定格光束 | AC3: 消費効率 | AD3: 照度補正の場合
A4: ▼ | C4: KUHAKU | T4: KUHAKULED | AE4: ※消費効率を小数点１位以下切捨てに変更（2015/7）
A5: FLR40W1灯 ﾗﾋﾟｯﾄﾞ式 逆富士形(幅120mm) | B5: NM4103-DH | C5: NM4103DH | E5: 8900 | F5: 580 | G5: =SUM(E5:F5) -> 9480 | H5: 46 | J5: 12000 | K5: 2850 | L5: =K5/H5 -> 61.95652174 | N5: 1 | O5: 200 | P5: 580 | R5: LED40形（FHF32形1灯定格出力 昼白色） 逆富士形（幅160mm） 連続調光・固定出力兼用形 | S5: NC4A1+CE402NE-X14A | T5: NC4A1 | V5: 4000 | W5: 26300 | X5: =SUM(V5:W5) -> 30300 | Y5: 13.7 | AA5: 40000 | AB5: 2200 | AC5: =ROUNDDOWN(AB5/Y5,1) -> 160.5
A6: FHF32W1灯 定格出力 逆富士形(幅100mm) | B6: HNM4105V-MEN14 | C6: HNM4105VMEN14 | E6: 8900 | F6: 1400 | G6: =SUM(E6:F6) -> 10300 | H6: 34 | J6: 12000 | K6: 3340 | L6: =K6/H6 -> 98.23529412 | N6: 1 | O6: 200 | P6: =F6/N6 -> 1400 | R6: LED40形（FHF32形1灯定格出力 昼白色） 逆富士形（幅160mm） 連続調光・固定出力兼用形 | S6: NC4A1+CE402NE-X14A | T6: NC4A1 | V6: 4000 | W6: 26300 | X6: 30300 | Y6: 13.7 | AA6: 40000 | AB6: 2200 | AC6: =ROUNDDOWN(AB6/Y6,1) -> 160.5
A7: FHF32W1灯 定格出力 逆富士形(幅100mm) 照度補正形 | B7: HNM4105V-PKN14 | C7: HNM4105VP | E7: 15400 | F7: 1400 | G7: 16800 | H7: 34 | I7: 29 | J7: 12000 | K7: 3340 | L7: 98.23529412 | M7: 平均消費電力 | N7: 1 | O7: 200 | P7: 1400 | R7: LED40形（FHF32形1灯定格出力 昼白色） 逆富士形（幅160mm） 連続調光・固定出力兼用形 | S7: NC4A1+CE402NE-X14A | T7: NC4A1 | V7: 4000 | W7: 26300 | X7: 30300 | Y7: 13.7 | AA7: 40000 | AB7: 2200 | AC7: =ROUNDDOWN(AB7/Y7,1) -> 160.5
A8: FHF32W1灯 高出力 逆富士形(幅100mm) | B8: HNM4105V-MEU14 | C8: HNM4105VMEU14 | E8: 11400 | F8: 1400 | G8: 12800 | H8: 45 | J8: 12000 | K8: 4530 | L8: 100.6666667 | N8: 1 | O8: 200 | P8: 1400 | R8: LED40形（FHF32形1灯高出力 昼白色） 逆富士形（幅160mm） 連続調光・固定出力兼用形 | S8: NC4A1+CE403NF-X14A | T8: NC4A1 | V8: 4000 | W8: 26800 | X8: 30800 | Y8: 18.7 | AA8: 40000 | AB8: 3000 | AC8: 160.4
A9: FHF32W1灯 高出力 逆富士形(幅100mm) 照度補正形 | B9: HNM4105V-PKU14 | C9: HNM4105VP | E9: 17400 | F9: 1400 | G9: 18800 | H9: 45 | I9: 38 | J9: 12000 | K9: 4670 | L9: 103.7777778 | M9: 平均消費電力 | N9: 1 | O9: 200 | P9: 1400 | R9: LED40形（FHF32形1灯高出力 昼白色） 逆富士形（幅160mm） 連続調光・固定出力兼用形 | S9: NC4A1+CE403NF-X14A | T9: NC4A1 | V9: 4000 | W9: 26800 | X9: 30800 | Y9: 18.7 | AA9: 40000 | AB9: 3000 | AC9: =ROUNDDOWN(AB9/Y9,1) -> 160.4
A10: FHF32W2灯 定格出力 逆富士形(幅160mm) | B10: HNM4205V-MEN14 | C10: HNM4205VMEN14 | E10: 12500 | F10: 2800 | G10: 15300 | H10: 65 | J10: 12000 | K10: 6690 | L10: 102.9230769 | N10: 2 | O10: 200 | P10: 1400 | R10: LED40形（FHF32形2灯定格出力 昼白色） 逆富士形（幅160mm） 連続調光・固定出力兼用形 | S10: NC4A1+CE404NE-X14A | T10: NC4A1 | V10: 4000 | W10: 28900 | X10: 32900 | Y10: 27.5 | AA10: 40000 | AB10: 4400 | AC10: =ROUNDDOWN(AB10/Y10,1) -> 160
A11: FHF32W2灯 定格出力 逆富士形(幅160mm) 照度補正形 | B11: HNM4205V-PKN14 | C11: HNM4205VP | E11: 17500 | F11: 2800 | G11: 20300 | H11: 65 | I11: 55 | J11: 12000 | K11: 6690 | L11: 102.9230769 | M11: 平均消費電力 | N11: 2 | O11: 200 | P11: 1400 | R11: LED40形（FHF32形2灯定格出力 昼白色） 逆富士形（幅160mm） 連続調光・固定出力兼用形 | S11: NC4A1+CE404NE-X14A | T11: NC4A1 | V11: 4000 | W11: 28900 | X11: 32900 | Y11: 27.5 | AA11: 40000 | AB11: 4400 | AC11: 160
A12: FHF32W2灯 定格出力(H) 逆富士形(幅160mm) | B12: HNM4205V-MEN14 | C12: HNM4205VMEN14 | E12: 12500 | F12: 2800 | G12: 15300 | H12: 65 | J12: 12000 | K12: 6690 | L12: 102.9230769 | N12: 2 | O12: 200 | P12: 1400 | R12: LED40形（FHF32形2灯定格出力(H) 昼白色） 逆富士形（幅160mm） 連続調光・固定出力兼用形 | S12: NC4A1+CE405NE-X14A | T12: NC4A1 | V12: 4000 | W12: 32900 | X12: 36900 | Y12: 31.9 | AA12: 40000 | AB12: 5200 | AC12: 163
A13: FHF32W2灯 定格出力(H) 逆富士形(幅160mm) 照度補正形 | B13: HNM4205V-PKN14 | C13: HNM4205VP | E13: 17500 | F13: 2800 | G13: 20300 | H13: 65 | I13: 55 | J13: 12000 | K13: 6690 | L13: 102.9230769 | M13: 平均消費電力 | N13: 2 | O13: 200 | P13: 1400 | R13: LED40形（FHF32形2灯定格出力(H) 昼白色） 逆富士形（幅160mm） 連続調光・固定出力兼用形 | S13: NC4A1+CE405NE-X14A | T13: NC4A1 | V13: 4000 | W13: 32900 | X13: 36900 | Y13: 31.9 | AA13: 40000 | AB13: 5200 | AC13: 163
A14: FHF32W2灯 高出力 逆富士形(幅160mm) | B14: HNM4205V-MEU14 | C14: HNM4205VMEU14 | E14: 16500 | F14: 2800 | G14: =SUM(E14:F14) -> 19300 | H14: 88 | J14: 12000 | K14: 9070 | L14: =K14/H14 -> 103.0681818 | N14: 2 | O14: 200 | P14: 1400 | R14: LED40形（FHF32形2灯高出力 昼白色） 逆富士形（幅160mm） 連続調光・固定出力兼用形 | S14: NC4A1+CE406NE-X14A | T14: NC4A1 | V14: 4000 | W14: 36300 | X14: =SUM(V14:W14) -> 40300 | Y14: 37.4 | AA14: 40000 | AB14: 6000 | AC14: 160.4
A15: FHF32W2灯 高出力 逆富士形(幅160mm) 照度補正形 | B15: HNM4205V-PKU14 | C15: HNM4205VP | E15: 19500 | F15: 2800 | G15: 22300 | H15: 88 | I15: 75 | J15: 12000 | K15: 9350 | L15: 106.25 | M15: 平均消費電力 | N15: 2 | O15: 200 | P15: 1400 | R15: LED40形（FHF32形2灯高出力 昼白色） 逆富士形（幅160mm） 連続調光・固定出力兼用形 | S15: NC4A1+CE406NE-X14A | T15: NC4A1 | V15: 4000 | W15: 36300 | X15: =SUM(V15:W15) -> 40300 | Y15: 37.4 | AA15: 40000 | AB15: 6000 | AC15: 160.4
A16: FHF32W2灯 高出力(H) 逆富士形(幅160mm) | B16: HNM4205V-MEU14 | C16: HNM4205VMEU14 | E16: 16500 | F16: 2800 | G16: =SUM(E16:F16) -> 19300 | H16: 88 | J16: 12000 | K16: 9070 | L16: =K16/H16 -> 103.0681818 | N16: 2 | O16: 200 | P16: 1400 | R16: LED40形（FHF32形2灯高出力(H) 昼白色） 逆富士形（幅160mm） 連続調光・固定出力兼用形 | S16: NC4A1+CE407NE-X14A | T16: NC4A1 | V16: 4000 | W16: 37500 | X16: =SUM(V16:W16) -> 41500 | Y16: 43.6 | AA16: 40000 | AB16: 7000 | AC16: 160.5
A17: FHF32W2灯 高出力(H) 逆富士形(幅160mm) 照度補正形 | B17: HNM4205V-PKU14 | C17: HNM4205VP | E17: 19500 | F17: 2800 | G17: =SUM(E17:F17) -> 22300 | H17: 88 | I17: 75 | J17: 12000 | K17: 9350 | L17: =K17/H17 -> 106.25 | M17: 平均消費電力 | N17: 2 | O17: 200 | P17: 1400 | R17: LED40形（FHF32形2灯高出力(H) 昼白色） 逆富士形（幅160mm） 連続調光・固定出力兼用形 | S17: NC4A1+CE407NE-X14A | T17: NC4A1 | V17: 4000 | W17: 37500 | X17: =SUM(V17:W17) -> 41500 | Y17: 43.6 | AA17: 40000 | AB17: 7000 | AC17: 160.5
A18: FHF32W1灯 定格出力 逆富士形(幅120mm) | B18: HNM4103V-MEN14 | C18: HNM4103V | E18: 8900 | F18: 1400 | G18: 10300 | H18: 34 | J18: 12000 | K18: 3340 | L18: 98.23529412 | N18: 1 | O18: 200 | P18: 1400 | R18: LED40形（FHF32形1灯定格出力 昼白色） 逆富士形（幅160mm） 連続調光・固定出力兼用形 | S18: NC4A1+CE402NE-X14A | T18: NC4A1 | V18: 4000 | W18: 26300 | X18: 30300 | Y18: 13.7 | AA18: 40000 | AB18: 2200 | AC18: 160.5
A19: FHF32W1灯 定格出力 逆富士形(幅120mm) 照度補正形 | B19: HNM4103V-PKN14 | C19: HNM4103V | E19: 15400 | F19: 1400 | G19: 16800 | H19: 34 | I19: 29 | J19: 12000 | K19: 3340 | L19: 98.23529412 | M19: 平均消費電力 | N19: 1 | O19: 200 | P19: 1400 | R19: LED40形（FHF32形1灯定格出力 昼白色） 逆富士形（幅160mm） 連続調光・固定出力兼用形 | S19: NC4A1+CE402NE-X14A | T19: NC4A1 | V19: 4000 | W19: 26300 | X19: 30300 | Y19: 13.7 | AA19: 40000 | AB19: 2200 | AC19: 160.5
A20: FHF32W1灯 高出力 逆富士形(幅120mm) | B20: HNM4103V-MEU14 | C20: HNM4103V | E20: 11400 | F20: 1400 | G20: 12800 | H20: 45 | J20: 12000 | K20: 4670 | L20: 103.7777778 | N20: 1 | O20: 200 | P20: 1400 | R20: LED40形（FHF32形1灯高出力 昼白色） 逆富士形（幅160mm） 連続調光・固定出力兼用形 | S20: NC4A1+CE403NF-X14A | T20: NC4A1 | V20: 4000 | W20: 26800 | X20: 30800 | Y20: 18.7 | AA20: 40000 | AB20: 3000 | AC20: 160.4
A21: FHF32W1灯 高出力 逆富士形(幅120mm) 照度補正形 | B21: HNM4103V-PKU14 | C21: HNM4103V | E21: 17400 | F21: 1400 | G21: 18800 | H21: 45 | I21: 38 | J21: 12000 | K21: 4670 | L21: 103.7777778 | M21: 平均消費電力 | N21: 1 | O21: 200 | P21: 1400 | R21: LED40形（FHF32形1灯高出力 昼白色） 逆富士形（幅160mm） 連続調光・固定出力兼用形 | S21: NC4A1+CE403NF-X14A | T21: NC4A1 | V21: 4000 | W21: 26800 | X21: 30800 | Y21: 18.7 | AA21: 40000 | AB21: 3000 | AC21: 160.4
A22: FLR40W2灯 ﾗﾋﾟｯﾄﾞ式 逆富士形(幅200mm) | B22: NM4203-DSC | C22: NM4203DSC | E22: 12500 | F22: 1160 | G22: 13660 | H22: 85 | J22: 12000 | K22: 5520 | L22: 64.94117647 | N22: 2 | O22: 200 | P22: 580 | R22: LED40形（FLR40形2灯定格出力 昼白色） 逆富士形（幅230mm） 連続調光・固定出力兼用形 | S22: NC4B1+CE403NE-X14A | T22: NC4B1 | V22: 4200 | W22: 27500 | X22: 31700 | Y22: 23.7 | AA22: 40000 | AB22: 3800 | AC22: 160.3
A23: FHF32W2灯 定格出力 逆富士形(幅200mm) | B23: HNM4203V-MEN14 | C23: HNM4203VMEN14 | E23: 12500 | F23: 2800 | G23: 15300 | H23: 65 | J23: 12000 | K23: 6690 | L23: 102.9230769 | N23: 2 | O23: 200 | P23: 1400 | R23: LED40形（FHF32形2灯定格出力 昼白色） 逆富士形（幅230mm） 連続調光・固定出力兼用形 | S23: NC4B1+CE404NE-X14A | T23: NC4B1 | V23: 4200 | W23: 28900 | X23: 33100 | Y23: 27.5 | AA23: 40000 | AB23: 4400 | AC23: 160
A24: FHF32W2灯 定格出力 逆富士形(幅200mm) 照度補正形 | B24: HNM4203V-PKN14 | C24: HNM4203V | E24: 17500 | F24: 2800 | G24: 20300 | H24: 65 | I24: 55 | J24: 12000 | K24: 6690 | L24: 102.9230769 | M24: 平均消費電力 | N24: 2 | O24: 200 | P24: 1400 | R24: LED40形（FHF32形2灯定格出力 昼白色） 逆富士形（幅230mm） 連続調光・固定出力兼用形 | S24: NC4B1+CE404NE-X14A | T24: NC4B1 | V24: 4200 | W24: 28900 | X24: 33100 | Y24: 27.5 | AA24: 40000 | AB24: 4400 | AC24: 160
A25: FHF32W2灯 定格出力(H) 逆富士形(幅200mm) | B25: HNM4203V-MEN14 | C25: HNM4203VMEN14 | E25: 12500 | F25: 2800 | G25: =SUM(E25:F25) -> 15300 | H25: 65 | J25: 12000 | K25: 6690 | L25: 102.9230769 | N25: 2 | O25: 200 | P25: 1400 | R25: LED40形（FHF32形2灯定格出力(H) 昼白色） 逆富士形（幅230mm） 連続調光・固定出力兼用形 | S25: NC4B1+CE405NE-X14A | T25: NC4B1 | V25: 4200 | W25: 32900 | X25: 37100 | Y25: 31.9 | AA25: 40000 | AB25: 5200 | AC25: 163
A26: FHF32W2灯 定格出力(H) 逆富士形(幅200mm) 照度補正形 | B26: HNM4203V-PKN14 | C26: HNM4203V | E26: 17500 | F26: 2800 | G26: 20300 | H26: 65 | I26: 55 | J26: 12000 | K26: 6690 | L26: 102.9230769 | M26: 平均消費電力 | N26: 2 | O26: 200 | P26: 1400 | R26: LED40形（FHF32形2灯定格出力(H) 昼白色） 逆富士形（幅230mm） 連続調光・固定出力兼用形 | S26: NC4B1+CE405NE-X14A | T26: NC4B1 | V26: 4200 | W26: 32900 | X26: 37100 | Y26: 31.9 | AA26: 40000 | AB26: 5200 | AC26: 163
A27: FHF32W2灯 高出力 逆富士形(幅200mm) | B27: HNM4203V-MEU14 | C27: HNM4203V | E27: 16500 | F27: 2800 | G27: 19300 | H27: 88 | J27: 12000 | K27: 9350 | L27: 106.25 | N27: 2 | O27: 200 | P27: 1400 | R27: LED40形（FHF32形2灯高出力 昼白色） 逆富士形（幅230mm） 連続調光・固定出力兼用形 | S27: NC4B1+CE406NE-X14A | T27: NC4B1 | V27: 4200 | W27: 36300 | X27: =SUM(V27:W27) -> 40500 | Y27: 37.4 | AA27: 40000 | AB27: 6000 | AC27: 160.4
A28: FHF32W2灯 高出力 逆富士形(幅200mm) 照度補正形 | B28: HNM4203V-PKU14 | C28: HNM4203V | E28: 19500 | F28: 2800 | G28: 22300 | H28: 88 | I28: 75 | J28: 12000 | K28: 9350 | L28: 106.25 | M28: 平均消費電力 | N28: 2 | O28: 200 | P28: 1400 | R28: LED40形（FHF32形2灯高出力 昼白色） 逆富士形（幅230mm） 連続調光・固定出力兼用形 | S28: NC4B1+CE406NE-X14A | T28: NC4B1 | V28: 4200 | W28: 36300 | X28: =SUM(V28:W28) -> 40500 | Y28: 37.4 | AA28: 40000 | AB28: 6000 | AC28: 160.4
A29: FHF32W2灯 高出力(H) 逆富士形(幅200mm) | B29: HNM4203V-MEU14 | C29: HNM4203V | E29: 16500 | F29: 2800 | G29: =SUM(E29:F29) -> 19300 | H29: 88 | J29: 12000 | K29: 9350 | L29: 106.25 | N29: 2 | O29: 200 | P29: 1400 | R29: LED40形（FHF32形2灯高出力(H) 昼白色） 逆富士形（幅230mm） 連続調光・固定出力兼用形 | S29: NC4B1+CE407NE-X14A | T29: NC4B1 | V29: 4200 | W29: 37500 | X29: =SUM(V29:W29) -> 41700 | Y29: 43.6 | AA29: 40000 | AB29: 7000 | AC29: 160.5
A30: FHF32W2灯 高出力(H) 逆富士形(幅200mm) 照度補正形 | B30: HNM4203V-PKU14 | C30: HNM4203V | E30: 19500 | F30: 2800 | G30: 22300 | H30: 88 | I30: 75 | J30: 12000 | K30: 9350 | L30: 106.25 | M30: 平均消費電力 | N30: 2 | O30: 200 | P30: 1400 | R30: LED40形（FHF32形2灯高出力(H) 昼白色） 逆富士形（幅230mm） 連続調光・固定出力兼用形 | S30: NC4B1+CE407NE-X14A | T30: NC4B1 | V30: 4200 | W30: 37500 | X30: =SUM(V30:W30) -> 41700 | Y30: 43.6 | AA30: 40000 | AB30: 7000 | AC30: 160.5
A31: FLR40W1灯 ﾗﾋﾟｯﾄﾞ式 トラフ形 | B31: PM4118S-DH | C31: PM4118SDH | E31: 8100 | F31: 580 | G31: 8680 | H31: 46 | J31: 12000 | K31: 2850 | L31: =K31/H31 -> 61.95652174 | N31: 1 | O31: 200 | P31: =F31/N31 -> 580 | R31: LED40形（FHF32形1灯定格出力 昼白色） トラフ形 連続調光・固定出力兼用形 | S31: PC4A1+CE402NE-X14A | T31: PC4A1 | V31: 4000 | W31: 26300 | X31: =SUM(V31:W31) -> 30300 | Y31: 13.7 | AA31: 40000 | AB31: 2200 | AC31: 160.5
A32: FHF32W1灯 定格出力 トラフ形 | B32: HPM4105V-MEN14 | C32: HPM4105VMEN14 | E32: 8100 | F32: 1400 | G32: 9500 | H32: 34 | J32: 12000 | K32: 3340 | L32: 98.23529412 | N32: 1 | O32: 200 | P32: 1400 | R32: LED40形（FHF32形1灯定格出力 昼白色） トラフ形 連続調光・固定出力兼用形 | S32: PC4A1+CE402NE-X14A | T32: PC4A1 | V32: 4000 | W32: 26300 | X32: 30300 | Y32: 13.7 | AA32: 40000 | AB32: 2200 | AC32: 160.5
A33: FHF32W1灯 定格出力 トラフ形 照度補正形 | B33: HPM4105V-PKN14 | C33: HPM4105VMEN14 | E33: 14800 | F33: 1400 | G33: 16200 | H33: 34 | I33: 29 | J33: 12000 | K33: 3340 | L33: 98.23529412 | M33: 平均消費電力 | N33: 1 | O33: 200 | P33: 1400 | R33: LED40形（FHF32形1灯定格出力 昼白色） トラフ形 連続調光・固定出力兼用形 | S33: PC4A1+CE402NE-X14A | T33: PC4A1 | V33: 4000 | W33: 26300 | X33: 30300 | Y33: 13.7 | AA33: 40000 | AB33: 2200 | AC33: 160.5
A34: FHF32W1灯 高出力 トラフ形 | B34: HPM4105V-MEU14 | C34: HPM4105VMEU14 | E34: 10800 | F34: 1400 | G34: 12200 | H34: 45 | J34: 12000 | K34: 4530 | L34: 100.6666667 | N34: 1 | O34: 200 | P34: 1400 | R34: LED40形（FHF32形1灯高出力 昼白色） トラフ形 連続調光・固定出力兼用形 | S34: PC4A1+CE403NF-X14A | T34: PC4A1 | V34: 4000 | W34: 26800 | X34: 30800 | Y34: 18.7 | AA34: 40000 | AB34: 3000 | AC34: 160.4
A35: FHF32W1灯 高出力 トラフ形 照度補正形 | B35: HPM4105V-PKU14 | C35: HPM4105VMEN14 | E35: 16800 | F35: 1400 | G35: 18200 | H35: 45 | I35: 38 | J35: 12000 | K35: 4670 | L35: 103.7777778 | M35: 平均消費電力 | N35: 1 | O35: 200 | P35: 1400 | R35: LED40形（FHF32形1灯高出力 昼白色） トラフ形 連続調光・固定出力兼用形 | S35: PC4A1+CE403NF-X14A | T35: PC4A1 | V35: 4000 | W35: 26800 | X35: 30800 | Y35: 18.7 | AA35: 40000 | AB35: 3000 | AC35: 160.4
A36: FHF32W2灯 定格出力 トラフ形 | B36: HPM4205V-MEN14 | C36: HPM4205VMEN14 | E36: 9900 | F36: 2800 | G36: =SUM(E36:F36) -> 12700 | H36: 65 | J36: 12000 | K36: 6690 | L36: 102.9230769 | N36: 2 | O36: 200 | P36: 1400 | R36: LED40形（FHF32形2灯定格出力 昼白色） トラフ形 連続調光・固定出力兼用形 | S36: PC4A1+CE404NE-X14A | T36: PC4A1 | V36: 4000 | W36: 28900 | X36: 32900 | Y36: 27.5 | AA36: 40000 | AB36: 4400 | AC36: 160
A37: FHF32W2灯 定格出力 トラフ形 照度補正形 | B37: HPM4205V-PKN14 | C37: HPM4105VMEN14 | E37: 15000 | F37: 2800 | G37: 17800 | H37: 65 | I37: 55 | J37: 12000 | K37: 6690 | L37: 102.9230769 | M37: 平均消費電力 | N37: 2 | O37: 200 | P37: 1400 | R37: LED40形（FHF32形2灯定格出力 昼白色） トラフ形 連続調光・固定出力兼用形 | S37: PC4A1+CE404NE-X14A | T37: PC4A1 | V37: 4000 | W37: 28900 | X37: 32900 | Y37: 27.5 | AA37: 40000 | AB37: 4400 | AC37: 160
A38: FHF32W2灯 定格出力(H) トラフ形 | B38: HPM4205V-MEN14 | C38: HPM4205VMEN14 | E38: 9900 | F38: 2800 | G38: 12700 | H38: 65 | J38: 12000 | K38: 6690 | L38: 102.9230769 | N38: 2 | O38: 200 | P38: 1400 | R38: LED40形（FHF32形2灯定格出力(H) 昼白色） トラフ形 連続調光・固定出力兼用形 | S38: PC4A1+CE405NE-X14A | T38: PC4A1 | V38: 4000 | W38: 32900 | X38: 36900 | Y38: 31.9 | AA38: 40000 | AB38: 5200 | AC38: 163
A39: FHF32W2灯 定格出力(H) トラフ形 照度補正形 | B39: HPM4205V-PKN14 | C39: HPM4205V | E39: 15000 | F39: 2800 | G39: 17800 | H39: 65 | I39: 55 | J39: 12000 | K39: 6690 | L39: 102.9230769 | M39: 平均消費電力 | N39: 2 | O39: 200 | P39: 1400 | R39: LED40形（FHF32形2灯定格出力(H) 昼白色） トラフ形 連続調光・固定出力兼用形 | S39: PC4A1+CE405NE-X14A | T39: PC4A1 | V39: 4000 | W39: 32900 | X39: 36900 | Y39: 31.9 | AA39: 40000 | AB39: 5200 | AC39: 163
A40: FHF32W2灯 高出力 トラフ形 | B40: HPM4205V-MEU14 | C40: HPM4205V | E40: 14000 | F40: 2800 | G40: 16800 | H40: 88 | J40: 12000 | K40: 9350 | L40: 106.25 | N40: 2 | O40: 200 | P40: 1400 | R40: LED40形（FHF32形2灯高出力 昼白色） トラフ形 連続調光・固定出力兼用形 | S40: PC4A1+CE406NE-X14A | T40: PC4A1 | V40: 4000 | W40: 36300 | X40: 40300 | Y40: 37.4 | AA40: 40000 | AB40: 6000 | AC40: 160.4
A41: FHF32W2灯 高出力 トラフ形 照度補正形 | B41: HPM4205V-PKU14 | C41: HPM4205V | E41: 17000 | F41: 2800 | G41: 19800 | H41: 88 | I41: 75 | J41: 12000 | K41: 9350 | L41: 106.25 | M41: 平均消費電力 | N41: 2 | O41: 200 | P41: 1400 | R41: LED40形（FHF32形2灯高出力 昼白色） トラフ形 連続調光・固定出力兼用形 | S41: PC4A1+CE406NE-X14A | T41: PC4A1 | V41: 4000 | W41: 36300 | X41: 40300 | Y41: 37.4 | AA41: 40000 | AB41: 6000 | AC41: 160.4
A42: FHF32W2灯 高出力(H) トラフ形 | B42: HPM4205V-MEU14 | C42: HPM4205V | E42: 14000 | F42: 2800 | G42: =SUM(E42:F42) -> 16800 | H42: 88 | J42: 12000 | K42: 9350 | L42: 106.25 | N42: 2 | O42: 200 | P42: 1400 | R42: LED40形（FHF32形2灯高出力(H) 昼白色） トラフ形 連続調光・固定出力兼用形 | S42: PC4A1+CE407NE-X14A | T42: PC4A1 | V42: 4000 | W42: 37500 | X42: 41500 | Y42: 43.6 | AA42: 40000 | AB42: 7000 | AC42: 160.5
A43: FHF32W2灯 高出力(H) トラフ形 照度補正形 | B43: HPM4205V-PKU14 | C43: HPM4205V | E43: 17000 | F43: 2800 | G43: 19800 | H43: 88 | I43: 75 | J43: 12000 | K43: 9350 | L43: 106.25 | M43: 平均消費電力 | N43: 2 | O43: 200 | P43: 1400 | R43: LED40形（FHF32形2灯高出力(H) 昼白色） トラフ形 連続調光・固定出力兼用形 | S43: PC4A1+CE407NE-X14A | T43: PC4A1 | V43: 4000 | W43: 37500 | X43: 41500 | Y43: 43.6 | AA43: 40000 | AB43: 7000 | AC43: 160.5
A44: FLR40W1灯 ﾗﾋﾟｯﾄﾞ式 笠付形 | B44: PK4118S-DH | C44: PK4118SDH | E44: 8500 | F44: 580 | G44: 9080 | H44: 46 | J44: 12000 | K44: 2850 | L44: 61.95652174 | N44: 1 | O44: 200 | P44: 580 | R44: LED40形（FHF32形1灯定格出力 昼白色） 笠付形 連続調光・固定出力兼用形 | S44: PC4B1+CE402NE-X14A | T44: PC4B1 | V44: 4600 | W44: 26300 | X44: 30900 | Y44: 13.7 | AA44: 40000 | AB44: 2160 | AC44: 157.6
A45: FHF32W1灯 定格出力 笠付形 | B45: HNK4105V-MEN14 | C45: HNK4105VMEN14 | E45: 8500 | F45: 1400 | G45: 9900 | H45: 34 | J45: 12000 | K45: 3340 | L45: 98.23529412 | N45: 1 | O45: 200 | P45: 1400 | R45: LED40形（FHF32形1灯定格出力 昼白色） 笠付形 連続調光・固定出力兼用形 | S45: PC4B1+CE402NE-X14A | T45: PC4B1 | V45: 4600 | W45: 26300 | X45: 30900 | Y45: 13.7 | AA45: 40000 | AB45: 2160 | AC45: 157.6
A46: FHF32W1灯 定格出力 笠付形 照度補正形 | B46: HNK4105V-PKN14 | C46: HNK4105VP | E46: 15300 | F46: 1400 | G46: 16700 | H46: 34 | I46: 29 | J46: 12000 | K46: 3340 | L46: 98.23529412 | M46: 平均消費電力 | N46: 1 | O46: 200 | P46: 1400 | R46: LED40形（FHF32形1灯定格出力 昼白色） 笠付形 連続調光・固定出力兼用形 | S46: PC4B1+CE402NE-X14A | T46: PC4B1 | V46: 4600 | W46: 26300 | X46: =SUM(V46:W46) -> 30900 | Y46: 13.7 | AA46: 40000 | AB46: 2160 | AC46: 157.6
A47: FHF32W1灯 高出力 笠付形 | B47: HNK4105V-MEU14 | C47: HNK4105VMEU14 | E47: 11300 | F47: 1400 | G47: 12700 | H47: 45 | J47: 12000 | K47: 4530 | L47: 100.6666667 | N47: 1 | O47: 200 | P47: 1400 | R47: LED40形（FHF32形1灯高出力 昼白色） 笠付形 連続調光・固定出力兼用形 | S47: PC4B1+CE403NF-X14A | T47: PC4B1 | V47: 4600 | W47: 26800 | X47: 31400 | Y47: 18.7 | AA47: 40000 | AB47: 2940 | AC47: 157.2
A48: FHF32W1灯 高出力 笠付形 照度補正形 | B48: HNK4105V-PKU14 | C48: HNK4105VP | E48: 17300 | F48: 1400 | G48: 18700 | H48: 45 | I48: 38 | J48: 12000 | K48: 4670 | L48: 103.7777778 | M48: 平均消費電力 | N48: 1 | O48: 200 | P48: 1400 | R48: LED40形（FHF32形1灯高出力 昼白色） 笠付形 連続調光・固定出力兼用形 | S48: PC4B1+CE403NF-X14A | T48: PC4B1 | V48: 4600 | W48: 26800 | X48: =SUM(V48:W48) -> 31400 | Y48: 18.7 | AA48: 40000 | AB48: 2940 | AC48: 157.2
A49: FLR40W2灯 ﾗﾋﾟｯﾄﾞ式 笠付形 | B49: PK4223S-DSC | C49: PK4223SDSC | E49: 10100 | F49: 1160 | G49: 11260 | H49: 85 | J49: 12000 | K49: 5700 | L49: 67.05882353 | N49: 2 | O49: 200 | P49: =F49/N49 -> 580 | R49: LED40形（FLR40形2灯定格出力 昼白色） 笠付形 連続調光・固定出力兼用形 | S49: PC4B1+CE403NE-X14A | T49: PC4B1 | V49: 4600 | W49: 27500 | X49: =SUM(V49:W49) -> 32100 | Y49: 23.7 | AA49: 40000 | AB49: 3730 | AC49: 157.3
A50: FHF32W2灯 定格出力 笠付形 | B50: HNK4205V-MEN14 | C50: HNK4205VMEN14 | E50: 10100 | F50: 2800 | G50: =SUM(E50:F50) -> 12900 | H50: 65 | J50: 12000 | K50: 6690 | L50: 102.9230769 | N50: 2 | O50: 200 | P50: 1400 | R50: LED40形（FHF32形2灯定格出力 昼白色） 笠付形 連続調光・固定出力兼用形 | S50: PC4B1+CE404NE-X14A | T50: PC4B1 | V50: 4600 | W50: 27500 | X50: 32100 | Y50: 27.5 | AA50: 40000 | AB50: 4320 | AC50: 157
A51: FHF32W2灯 定格出力 笠付形 照度補正形 | B51: HNK4205V-PKN14 | C51: HNK4205VP | E51: 17500 | F51: 2800 | G51: 20300 | H51: 65 | I51: 55 | J51: 12000 | K51: 6690 | L51: 102.9230769 | M51: 平均消費電力 | N51: 2 | O51: 200 | P51: 1400 | R51: LED40形（FHF32形2灯定格出力 昼白色） 笠付形 連続調光・固定出力兼用形 | S51: PC4B1+CE404NE-X14A | T51: PC4B1 | V51: 4600 | W51: 28900 | X51: =SUM(V51:W51) -> 33500 | Y51: 27.5 | AA51: 40000 | AB51: 4320 | AC51: 157
A52: FHF32W2灯 定格出力(H) 笠付形 | B52: HNK4205V-MEN14 | C52: HNK4205VMEN14 | E52: 10100 | F52: 2800 | G52: 12900 | H52: 65 | J52: 12000 | K52: 6690 | L52: 102.9230769 | N52: 2 | O52: 200 | P52: 1400 | R52: LED40形（FHF32形2灯定格出力 昼白色） 笠付形 連続調光・固定出力兼用形 | S52: PC4B1+CE405NE-X14A | T52: PC4B1 | V52: 4600 | W52: 32900 | X52: =SUM(V52:W52) -> 37500 | Y52: 31.9 | AA52: 40000 | AB52: 5100 | AC52: 159.8
A53: FHF32W2灯 定格出力(H) 笠付形 照度補正形 | B53: HNK4205V-PKN14 | C53: HNK4205VP | E53: 17500 | F53: 2800 | G53: 20300 | H53: 65 | I53: 55 | J53: 12000 | K53: 6690 | L53: 102.9230769 | M53: 平均消費電力 | N53: 2 | O53: 200 | P53: =F53/N53 -> 1400 | R53: LED40形（FHF32形2灯定格出力 昼白色） 笠付形 連続調光・固定出力兼用形 | S53: PC4B1+CE405NE-X14A | T53: PC4B1 | V53: 4600 | W53: 32900 | X53: =SUM(V53:W53) -> 37500 | Y53: 31.9 | AA53: 40000 | AB53: 5100 | AC53: 159.8
A54: FHF32W2灯 高出力 笠付形 | B54: HNK4205V-MEU14 | C54: HNK4205VMEU14 | E54: 14500 | F54: 2800 | G54: 17300 | H54: 88 | J54: 12000 | K54: 9070 | L54: 103.0681818 | N54: 2 | O54: 200 | P54: 1400 | R54: LED40形（FHF32形2灯高出力 昼白色） 笠付形 連続調光・固定出力兼用形 | S54: PC4B1+CE406NE-X14A | T54: PC4B1 | V54: 4600 | W54: 36300 | X54: 40900 | Y54: 37.4 | AA54: 40000 | AB54: 5890 | AC54: 157.4
A55: FHF32W2灯 高出力 笠付形 照度補正形 | B55: HNK4205V-PKU14 | C55: HNK4205VP | E55: 19500 | F55: 2800 | G55: 22300 | H55: 88 | I55: 75 | J55: 12000 | K55: 9350 | L55: 106.25 | M55: 平均消費電力 | N55: 2 | O55: 200 | P55: 1400 | R55: LED40形（FHF32形2灯高出力 昼白色） 笠付形 連続調光・固定出力兼用形 | S55: PC4B1+CE406NE-X14A | T55: PC4B1 | V55: 4600 | W55: 36300 | X55: =SUM(V55:W55) -> 40900 | Y55: 37.4 | AA55: 40000 | AB55: 5890 | AC55: 157.4
A56: FHF32W2灯 高出力(H) 笠付形 | B56: HNK4205V-MEU14 | C56: HNK4205VMEU14 | E56: 14500 | F56: 2800 | G56: 17300 | H56: 88 | J56: 12000 | K56: 9070 | L56: 103.0681818 | N56: 2 | O56: 200 | P56: 1400 | R56: LED40形（FHF32形2灯高出力(H) 昼白色） 笠付形 連続調光・固定出力兼用形 | S56: PC4B1+CE407NE-X14A | T56: PC4B1 | V56: 4600 | W56: 37500 | X56: =SUM(V56:W56) -> 42100 | Y56: 43.6 | AA56: 40000 | AB56: 6870 | AC56: 157.5
A57: FHF32W2灯 高出力(H) 笠付形 照度補正形 | B57: HNK4205V-PKU14 | C57: HNK4205VP | E57: 19500 | F57: 2800 | G57: 22300 | H57: 88 | I57: 75 | J57: 12000 | K57: 9350 | L57: 106.25 | M57: 平均消費電力 | N57: 2 | O57: 200 | P57: 1400 | R57: LED40形（FHF32形2灯高出力(H) 昼白色） 笠付形 連続調光・固定出力兼用形 | S57: PC4B1+CE407NE-X14A | T57: PC4B1 | V57: 4600 | W57: 37500 | X57: =SUM(V57:W57) -> 42100 | Y57: 43.6 | AA57: 40000 | AB57: 6870 | AC57: 157.5
A58: FHF32W2灯 定格出力 直付開放形 | B58: HNM4223V-EN14 | C58: HNM4223V | E58: 18000 | F58: 2800 | G58: 20800 | H58: 65 | J58: 12000 | K58: 6690 | L58: 102.9230769 | N58: 2 | O58: 200 | P58: 1400 | R58: LED40形（FHF32形2灯定格出力 昼白色） 直付開放形 連続調光・固定出力兼用形 | S58: NC4C1+CE404NE-X14A | T58: NC4C1 | V58: 11200 | W58: 28900 | X58: 40100 | Y58: 27.5 | AA58: 40000 | AB58: 4290 | AC58: 156
A59: FHF32W2灯 定格出力 直付開放形 照度補正形 | B59: HNM4223V-PKN14 | C59: HNM4223V | E59: 23100 | F59: 2800 | G59: 25900 | H59: 65 | I59: 55 | J59: 12000 | K59: 6650 | L59: 102.3076923 | M59: 平均消費電力 | N59: 2 | O59: 200 | P59: 1400 | R59: LED40形（FHF32形2灯定格出力 昼白色） 直付開放形 連続調光・固定出力兼用形 | S59: NC4C1+CE404NE-X14A | T59: NC4C1 | V59: 11200 | W59: 28900 | X59: =SUM(V59:W59) -> 40100 | Y59: 27.5 | AA59: 40000 | AB59: 4290 | AC59: 156
A60: FHF32W2灯 定格出力(H) 直付開放形 | B60: HNM4223V-EN14 | C60: HNM4223V | E60: 18000 | F60: 2800 | G60: 20800 | H60: 65 | J60: 12000 | K60: 6690 | L60: 102.9230769 | N60: 2 | O60: 200 | P60: 1400 | R60: LED40形（FHF32形2灯定格出力(H) 昼白色） 直付開放形 連続調光・固定出力兼用形 | S60: NC4C1+CE405NE-X14A | T60: NC4C1 | V60: 11200 | W60: 32900 | X60: =SUM(V60:W60) -> 44100 | Y60: 31.9 | AA60: 40000 | AB60: 5060 | AC60: 158.6
A61: FHF32W2灯 定格出力(H) 直付開放形 照度補正形 | B61: HNM4223V-PKN14 | C61: HNM4223V | E61: 23100 | F61: 2800 | G61: 25900 | H61: 65 | I61: 55 | J61: 12000 | K61: 6650 | L61: 102.3076923 | M61: 平均消費電力 | N61: 2 | O61: 200 | P61: 1400 | R61: LED40形（FHF32形2灯定格出力(H) 昼白色） 直付開放形 連続調光・固定出力兼用形 | S61: NC4C1+CE405NE-X14A | T61: NC4C1 | V61: 11200 | W61: 32900 | X61: =SUM(V61:W61) -> 44100 | Y61: 31.9 | AA61: 40000 | AB61: 5060 | AC61: 158.6
A62: FHF32W2灯 高出力 直付開放形 | B62: HNM4223V-EU14 | C62: HNM4223V | E62: 22100 | F62: 2800 | G62: 24900 | H62: 86 | J62: 12000 | K62: 9120 | L62: 106.0465116 | N62: 2 | O62: 200 | P62: 1400 | R62: LED40形（FHF32形2灯高出力 昼白色） 直付開放形 連続調光・固定出力兼用形 | S62: NC4C1+CE406NE-X14A | T62: NC4C1 | V62: 11200 | W62: 36300 | X62: 47500 | Y62: 37.4 | AA62: 40000 | AB62: 5840 | AC62: 156.1
A63: FHF32W2灯 高出力 直付開放形 照度補正形 | B63: HNM4223V-PKU14 | C63: HNM4223V | E63: 25100 | F63: 2800 | G63: 27900 | H63: 86 | I63: 73 | J63: 12000 | K63: 9120 | L63: 106.0465116 | M63: 平均消費電力 | N63: 2 | O63: 200 | P63: 1400 | R63: LED40形（FHF32形2灯高出力 昼白色） 直付開放形 連続調光・固定出力兼用形 | S63: NC4C1+CE406NE-X14A | T63: NC4C1 | V63: 11200 | W63: 36300 | X63: 47500 | Y63: 37.4 | AA63: 40000 | AB63: 5840 | AC63: 156.1
A64: FHF32W2灯 高出力(H) 直付開放形 | B64: HNM4223V-EU14 | C64: HNM4223V | E64: 22100 | F64: 2800 | G64: 24900 | H64: 86 | J64: 12000 | K64: 9120 | L64: 106.0465116 | N64: 2 | O64: 200 | P64: 1400 | R64: LED40形（FHF32形2灯高出力(H) 昼白色） 直付開放形 連続調光・固定出力兼用形 | S64: NC4C1+CE407NE-X14A | T64: NC4C1 | V64: 11200 | W64: 37500 | X64: 48700 | Y64: 43.6 | AA64: 40000 | AB64: 6820 | AC64: 156.4
A65: FHF32W2灯 高出力(H) 直付開放形 照度補正形 | B65: HNM4223V-PKU14 | C65: HNM4223V | E65: 25100 | F65: 2800 | G65: 27900 | H65: 86 | I65: 73 | J65: 12000 | K65: 9120 | L65: 106.0465116 | M65: 平均消費電力 | N65: 2 | O65: 200 | P65: 1400 | R65: LED40形（FHF32形2灯高出力(H) 昼白色） 直付開放形 連続調光・固定出力兼用形 | S65: NC4C1+CE407NE-X14A | T65: NC4C1 | V65: 11200 | W65: 37500 | X65: 48700 | Y65: 43.6 | AA65: 40000 | AB65: 6820 | AC65: 156.4
A66: FLR40W1灯 埋込開放形 (埋込寸法190×1257mm) | B66: HTM4122A-MEN | C66: HTM4122A | E66: 19500 | F66: 580 | G66: 20080 | H66: 34 | J66: 12000 | K66: 2850 | L66: 83.82352941 | N66: 1 | O66: 200 | P66: 580 | R66: LED40形（FLR40形1灯 白色） 埋込開放形（空調ﾀﾞｸﾄ回避） 連続調光・固定出力兼用形 | S66: TC4D+CET402NE-X14A | T66: TC4D | V66: 11000 | W66: 26300 | X66: 37300 | Y66: 13.7 | AA66: 40000 | AB66: 2050 | AC66: 149.6
A67: FHF32W1灯 定格出力 埋込開放形 (埋込寸法190×1257mm) | B67: HTM4122A-MEN | C67: HTM4122A | E67: 19500 | F67: 1400 | G67: 20900 | H67: 34 | J67: 12000 | K67: 3340 | L67: 98.23529412 | N67: 1 | O67: 200 | P67: 1400 | R67: LED40形（FHF32形1灯 定格出力 昼白色） 埋込開放形（空調ﾀﾞｸﾄ回避） 連続調光・固定出力兼用形 | S67: TC4D+CET402NE-X14A | T67: TC4D | V67: 11000 | W67: 26300 | X67: 37300 | Y67: 13.7 | AA67: 40000 | AB67: 2050 | AC67: 149.6
A68: FHF32W1灯 高出力 埋込開放形 (埋込寸法190×1257mm) | B68: HTM4122A-MEU | C68: HTM4122A | E68: OPEN | F68: 1400 | H68: 45 | J68: 12000 | K68: 4670 | L68: 103.7777778 | N68: 1 | O68: 200 | P68: 1400 | R68: LED40形（FHF32形1灯 高出力 昼白色） 埋込開放形（空調ﾀﾞｸﾄ回避） 連続調光・固定出力兼用形 | S68: TC4D+CET403NF-X14A | T68: TC4D | V68: 11000 | W68: 26800 | X68: 37800 | Y68: 18.7 | AA68: 40000 | AB68: 2800 | AC68: 149.7
A69: FHF32W2灯 定格出力 埋込開放形 (Cﾁｬﾝﾈﾙ回避) | B69: HTM4232V-EN14 | C69: HTM4232VEN14 | E69: 17000 | F69: 2800 | G69: 19800 | H69: 65 | J69: 12000 | K69: 6650 | L69: 102.3076923 | N69: 2 | O69: 200 | P69: 1400 | R69: LED40形（FHF32形2灯定格出力 昼白色） 埋込開放形（Cﾁｬﾝ回避） 連続調光・固定出力兼用形 | S69: TC4B1+CET404NE-X14A | T69: TC4B | V69: 13900 | W69: 28900 | X69: =SUM(V69:W69) -> 42800 | Y69: 27.5 | AA69: 40000 | AB69: 4280 | AC69: 155.6
A70: FHF32W2灯 定格出力 埋込開放形 (Cﾁｬﾝﾈﾙ回避) 照度補正形 | B70: HTM4232V-PKN14 | C70: HTM4232V | E70: 22600 | F70: 2800 | G70: 25400 | H70: 65 | I70: 55 | J70: 12000 | K70: 6650 | L70: 102.3076923 | M70: 平均消費電力 | N70: 2 | O70: 200 | P70: 1400 | R70: LED40形（FHF32形2灯定格出力 昼白色） 埋込開放形（Cﾁｬﾝ回避） 連続調光・固定出力兼用形 | S70: TC4B1+CET404NE-X14A | T70: TC4B | V70: 13900 | W70: 28900 | X70: 42800 | Y70: 27.5 | AA70: 40000 | AB70: 4280 | AC70: 155.6
A71: FHF32W2灯 定格出力(H) 埋込開放形 (Cﾁｬﾝﾈﾙ回避) | B71: HTM4232V-EN14 | C71: HTM4232VEN14 | E71: 17000 | F71: 2800 | G71: 19800 | H71: 65 | J71: 12000 | K71: 6650 | L71: 102.3076923 | N71: 2 | O71: 200 | P71: 1400 | R71: LED40形（FHF32形2灯定格出力(H) 昼白色） 埋込開放形（Cﾁｬﾝ回避） 連続調光・固定出力兼用形 | S71: TC4B1+CET405NE-X14A | T71: TC4B | V71: 13900 | W71: 32900 | X71: 46800 | Y71: 31.9 | AA71: 40000 | AB71: 5060 | AC71: 158.6
A72: FHF32W2灯 定格出力(H) 埋込開放形 (Cﾁｬﾝﾈﾙ回避) 照度補正形 | B72: HTM4232V-PKN14 | C72: HTM4232V | E72: 22600 | F72: 2800 | G72: 25400 | H72: 65 | I72: 55 | J72: 12000 | K72: 6650 | L72: 102.3076923 | M72: 平均消費電力 | N72: 2 | O72: 200 | P72: 1400 | R72: LED40形（FHF32形2灯定格出力(H) 昼白色） 埋込開放形（Cﾁｬﾝ回避） 連続調光・固定出力兼用形 | S72: TC4B1+CET405NE-X14A | T72: TC4B | V72: 13900 | W72: 32900 | X72: 46800 | Y72: 31.9 | AA72: 40000 | AB72: 5060 | AC72: 158.6
A73: FHF32W2灯 高出力 埋込開放形 (Cﾁｬﾝﾈﾙ回避) | B73: HTM4232V-EU14 | C73: HTM4232V | E73: 21600 | F73: 2800 | G73: 24400 | H73: 86 | J73: 12000 | K73: 8970 | L73: =K73/H73 -> 104.3023256 | N73: 2 | O73: 200 | P73: 1400 | R73: LED40形（FHF32形2灯高出力 昼白色） 埋込開放形（Cﾁｬﾝ回避） 連続調光・固定出力兼用形 | S73: TC4B1+CET406NE-X14A | T73: TC4B | V73: 13900 | W73: 36300 | X73: 50200 | Y73: 37.4 | AA73: 40000 | AB73: 5840 | AC73: 156.1
A74: FHF32W2灯 高出力 埋込開放形 (Cﾁｬﾝﾈﾙ回避) 照度補正形 | B74: HTM4232V-PKU14 | C74: HTM4232V | E74: 24600 | F74: 2800 | G74: 27400 | H74: 86 | I74: 73 | J74: 12000 | K74: 8970 | L74: 104.3023256 | M74: 平均消費電力 | N74: 2 | O74: 200 | P74: 1400 | R74: LED40形（FHF32形2灯高出力 昼白色） 埋込開放形（Cﾁｬﾝ回避） 連続調光・固定出力兼用形 | S74: TC4B1+CET406NE-X14A | T74: TC4B | V74: 13900 | W74: 36300 | X74: 50200 | Y74: 37.4 | AA74: 40000 | AB74: 5840 | AC74: 156.1
A75: FHF32W2灯 高出力(H) 埋込開放形 (Cﾁｬﾝﾈﾙ回避) | B75: HTM4232V-EU14 | C75: HTM4232V | E75: 21600 | F75: 2800 | G75: =SUM(E75:F75) -> 24400 | H75: 86 | J75: 12000 | K75: 8970 | L75: 104.3023256 | N75: 2 | O75: 200 | P75: 1400 | R75: LED40形（FHF32形2灯高出力(H) 昼白色） 埋込開放形（Cﾁｬﾝ回避） 連続調光・固定出力兼用形 | S75: TC4B1+CET407NE-X14A | T75: TC4B | V75: 13900 | W75: 37500 | X75: 51400 | Y75: 43.6 | AA75: 40000 | AB75: 6810 | AC75: 156.1
A76: FHF32W2灯 高出力(H) 埋込開放形 (Cﾁｬﾝﾈﾙ回避) 照度補正形 | B76: HTM4232V-PKU14 | C76: HTM4232V | E76: 24600 | F76: 2800 | G76: 27400 | H76: 86 | I76: 73 | J76: 12000 | K76: 8970 | L76: 104.3023256 | M76: 平均消費電力 | N76: 2 | O76: 200 | P76: 1400 | R76: LED40形（FHF32形2灯高出力(H) 昼白色） 埋込開放形（Cﾁｬﾝ回避） 連続調光・固定出力兼用形 | S76: TC4B1+CET407NE-X14A | T76: TC4B | V76: 13900 | W76: 37500 | X76: 51400 | Y76: 43.6 | AA76: 40000 | AB76: 6810 | AC76: 156.1
A77: FLR40W2灯 ﾗﾋﾟｯﾄﾞ式 埋込開放形 (ｱｸｾｻﾘ対応) | B77: TM4201-DSC | C77: TM4201DSC | E77: 23200 | F77: 1160 | G77: =SUM(E77:F77) -> 24360 | H77: 85 | J77: 12000 | K77: 5700 | L77: 67.05882353 | N77: 2 | O77: 200 | P77: 580 | R77: LED40形（FLR40形2灯定格出力 昼白色） 埋込開放形（ﾀﾞｸﾄ回避） 連続調光・固定出力兼用形 | S77: TC4C1+CET403NE-X14A | T77: TC4C | V77: 12200 | W77: 27500 | X77: 39700 | Y77: 23.7 | AA77: 40000 | AB77: 3590 | AC77: 151.4
A78: FHF32W2灯 定格出力 埋込開放形 | B78: HTM4201V-MEN14 | C78: HTM4201V | E78: 23200 | F78: 2800 | G78: 26000 | H78: 65 | J78: 12000 | K78: 6690 | L78: 102.9230769 | N78: 2 | O78: 200 | P78: 1400 | R78: LED40形（FHF32形2灯定格出力 昼白色） 埋込開放形（ﾀﾞｸﾄ回避） 連続調光・固定出力兼用形 | S78: TC4C1+CET404NE-X14A | T78: TC4C | V78: 12200 | W78: 28900 | X78: 41100 | Y78: 27.5 | AA78: 40000 | AB78: 4160 | AC78: 151.2
A79: FHF32W2灯 定格出力(H) 埋込開放形 | B79: HTM4201V-MEN14 | C79: HTM4201V | E79: 23200 | F79: 2800 | G79: =SUM(E79:F79) -> 26000 | H79: 65 | J79: 12000 | K79: 6690 | L79: 102.9230769 | N79: 2 | O79: 200 | P79: 1400 | R79: LED40形（FHF32形2灯定格出力(H) 昼白色） 埋込開放形（ﾀﾞｸﾄ回避） 連続調光・固定出力兼用形 | S79: TC4C1+CET405NE-X14A | T79: TC4C | V79: 12200 | W79: 32900 | X79: 45100 | Y79: 31.9 | AA79: 40000 | AB79: 4920 | AC79: 154.2
A80: FHF32W2灯 高出力 埋込開放形 | B80: HTM4201V-MEU14 | C80: HTM4201V | E80: 26700 | F80: 2800 | G80: 29500 | H80: 86 | J80: 12000 | K80: 9120 | L80: 106.0465116 | N80: 2 | O80: 200 | P80: 1400 | R80: LED40形（FHF32形2灯高出力 昼白色） 埋込開放形（ﾀﾞｸﾄ回避） 連続調光・固定出力兼用形 | S80: TC4C1+CET406NE-X14A | T80: TC4C | V80: 12200 | W80: 36300 | X80: 48500 | Y80: 37.4 | AA80: 40000 | AB80: 5680 | AC80: 151.8
A81: FHF32W2灯 高出力(H) 埋込開放形 | B81: HTM4201V-MEU14 | C81: HTM4201V | E81: 26700 | F81: 2800 | G81: =SUM(E81:F81) -> 29500 | H81: 86 | J81: 12000 | K81: 9120 | L81: 106.0465116 | N81: 2 | O81: 200 | P81: 1400 | R81: LED40形（FHF32形2灯高出力(H) 昼白色） 埋込開放形（ﾀﾞｸﾄ回避） 連続調光・固定出力兼用形 | S81: TC4C1+CET407NE-X14A | T81: TC4C | V81: 12200 | W81: 37500 | X81: 49700 | Y81: 43.6 | AA81: 40000 | AB81: 6620 | AC81: 151.8
A82: FLR110W1灯 ﾗﾋﾟｯﾄﾞ式 逆富士形 | B82: NM11107-DHC | C82: NM11107DHC | E82: 27900 | F82: 1800 | G82: 29700 | H82: 117 | J82: 12000 | K82: 8020 | L82: 68.54700855 | N82: 1 | O82: 800 | P82: 1800 | R82: LED110形（FHF86形1灯定格出力 昼白色） 逆富士形（幅160mm） 連続調光・固定出力兼用形 | S82: NC8A+CE806NE-X14A | T82: NC8A | V82: 9900 | W82: 46500 | X82: 56400 | Y82: 37 | AA82: 40000 | AB82: 6000 | AC82: 162.1
A83: FHF86W1灯 定格出力 逆富士形 | B83: HNM11103V-EN24 | C83: HNM11103V | E83: 27900 | F83: 3600 | G83: =SUM(E83:F83) -> 31500 | H83: 87 | J83: 12000 | K83: 8740 | L83: 100.4597701 | N83: 1 | O83: 800 | P83: 3600 | R83: LED110形（FHF86形1灯定格出力 昼白色） 逆富士形（幅160mm） 連続調光・固定出力兼用形 | S83: NC8A+CE806NE-X14A | T83: NC8A | V83: 9900 | W83: 46500 | X83: 56400 | Y83: 37 | AA83: 40000 | AB83: 6000 | AC83: 162.1
A84: FHF86W1灯 定格出力 逆富士形 照度補正形 | B84: HNM11103V-PKN14 | C84: HNM11103V | E84: 30400 | F84: 3600 | G84: 34000 | H84: 87 | I84: 74 | J84: 12000 | K84: 8740 | L84: 100.4597701 | M84: 平均消費電力 | N84: 1 | O84: 800 | P84: 3600 | R84: LED110形（FHF86形1灯定格出力 昼白色） 逆富士形（幅160mm） 連続調光・固定出力兼用形 | S84: NC8A+CE806NE-X14A | T84: NC8A | V84: 9900 | W84: 46500 | X84: 56400 | Y84: 37 | AA84: 40000 | AB84: 6000 | AC84: 162.1
A85: FLR110W2灯 ﾗﾋﾟｯﾄﾞ式 逆富士形 | B85: NM11208-DSC | C85: NM11208DSC | E85: 32000 | F85: 3600 | G85: =SUM(E85:F85) -> 35600 | H85: 225 | J85: 12000 | K85: 17520 | L85: 77.86666667 | N85: 2 | O85: 800 | P85: 1800 | R85: LED110形（FHF86形2灯定格出力 昼白色） 逆富士形（幅230mm） 連続調光・固定出力兼用形 | S85: NC8B+CE812NE-X24A | T85: NC8B | V85: 10400 | W85: 67800 | X85: =SUM(V85:W85) -> 78200 | Y85: 73.1 | AA85: 40000 | AB85: 12000 | AC85: 164.1
A86: FHF86W2灯 定格出力 逆富士形 | B86: HNM11203V-EN24P | C86: HNM11203V | E86: 36300 | F86: 7200 | G86: 43500 | H86: 171 | J86: 12000 | K86: 17480 | L86: 102.2222222 | N86: 2 | O86: 800 | P86: 3600 | R86: LED110形（FHF86形2灯定格出力 昼白色） 逆富士形（幅230mm） 連続調光・固定出力兼用形 | S86: NC8B+CE812NE-X24A | T86: NC8B | V86: 10400 | W86: 67800 | X86: 78200 | Y86: 73.1 | AA86: 40000 | AB86: 12000 | AC86: 164.1
A87: FHF86W2灯 定格出力(H) 逆富士形 | B87: HNM11203V-EN24P | C87: HNM11203V | E87: 36300 | F87: 7200 | G87: =SUM(E87:F87) -> 43500 | H87: 171 | J87: 12000 | K87: 17480 | L87: 102.2222222 | N87: 2 | O87: 800 | P87: 3600 | R87: LED110形（FHF86形2灯定格出力 昼白色） 逆富士形（幅230mm） 連続調光・固定出力兼用形 | S87: NC8B+CE814NE-X24A | T87: NC8B | V87: 10400 | W87: 69500 | X87: 79900 | Y87: 87 | AA87: 40000 | AB87: 14000 | AC87: 160.9
A88: FHF86W2灯 定格出力 逆富士形 照度補正形 | B88: HNM11203V-PKN24P | C88: HNM11203V | E88: 41300 | F88: 7200 | G88: 48500 | H88: 171 | I88: 145 | J88: 12000 | K88: 17480 | L88: 102.2222222 | M88: 平均消費電力 | N88: 2 | O88: 800 | P88: 3600 | R88: LED110形（FHF86形2灯定格出力 昼白色） 逆富士形（幅230mm） 連続調光・固定出力兼用形 | S88: NC8B+CE812NE-X24A | T88: NC8B | V88: 10400 | W88: 67800 | X88: 78200 | Y88: 73.1 | AA88: 40000 | AB88: 12000 | AC88: 164.1
A89: FHF86W2灯 定格出力(H) 逆富士形 照度補正形 | B89: HNM11203V-PKN24P | C89: HNM11203V | E89: 41300 | F89: 7200 | G89: =SUM(E89:F89) -> 48500 | H89: 171 | I89: 145 | J89: 12000 | K89: 17480 | L89: 102.2222222 | M89: 平均消費電力 | N89: 2 | O89: 800 | P89: 3600 | R89: LED110形（FHF86形2灯定格出力 昼白色） 逆富士形（幅230mm） 連続調光・固定出力兼用形 | S89: NC8B+CE812NE-X24A | T89: NC8B | V89: 10400 | W89: 67800 | X89: 78200 | Y89: 87 | AA89: 40000 | AB89: 14000 | AC89: 160.9
A90: FHF86W1灯 定格出力 トラフ形 | B90: HPM11107V-EN24 | C90: HPM11107VEN24 | E90: 25400 | F90: 3600 | G90: 29000 | H90: 87 | J90: 12000 | K90: 8740 | L90: 100.4597701 | N90: 1 | O90: 800 | P90: 3600 | R90: LED110形（FHF86形1灯定格出力 昼白色） トラフ形 連続調光・固定出力兼用形 | S90: PC8A+CE806NE-X14A | T90: PC8A | V90: 9900 | W90: 46500 | X90: 56400 | Y90: 37 | AA90: 40000 | AB90: 6000 | AC90: 162.1
A91: FLR110W1灯 ﾗﾋﾟｯﾄﾞ式 笠付形 | B91: PK11107-DHC | C91: PK11107DHC | E91: 27400 | F91: 1800 | G91: 29200 | H91: 117 | J91: 12000 | K91: 8020 | L91: 68.54700855 | N91: 1 | O91: 800 | P91: 1800 | R91: LED110形（FHF86形1灯定格出力 昼白色） 笠付形 連続調光・固定出力兼用形 | S91: PC8B+CE806NE-X14A | T91: PC8B | V91: 11200 | W91: 46500 | X91: 57700 | Y91: 37 | AA91: 40000 | AB91: 5890 | AC91: 159.1
A92: FHF86W1灯 定格出力 笠付形 | B92: HPK11108VB-EN24 | C92: HPK11108VBEN24 | E92: 27400 | F92: 3600 | G92: 31000 | H92: 87 | J92: 12000 | K92: 8730 | L92: 100.3448276 | N92: 1 | O92: 800 | P92: 3600 | R92: LED110形（FHF86形1灯定格出力 昼白色） 笠付形 連続調光・固定出力兼用形 | S92: PC8B+CE806NE-X14A | T92: PC8B | V92: 11200 | W92: 46500 | X92: 57700 | Y92: 37 | AA92: 40000 | AB92: 5890 | AC92: 159.1
A93: FHF86W1灯 定格出力 笠付形 照度補正形 | B93: HPK11108V-PKN14 | C93: HPK11108VPKN14 | E93: 29900 | F93: 3600 | G93: 33500 | H93: 87 | I93: 74 | J93: 12000 | K93: 8740 | L93: 100.4597701 | M93: 平均消費電力 | N93: 1 | O93: 800 | P93: 3600 | R93: LED110形（FHF86形1灯定格出力 昼白色） 笠付形 連続調光・固定出力兼用形 | S93: PC8B+CE806NE-X14A | T93: PC8B | V93: 11200 | W93: 46500 | X93: =SUM(V93:W93) -> 57700 | Y93: 37 | AA93: 40000 | AB93: 5890 | AC93: 159.1
A94: FLR110W2灯 ﾗﾋﾟｯﾄﾞ式 笠付形 | B94: PK11207-DSC | C94: PK11207DSC | E94: 31800 | F94: 3600 | G94: 35400 | H94: 225 | J94: 12000 | K94: 17520 | L94: 77.86666667 | N94: 2 | O94: 800 | P94: 1800 | R94: LED110形（FHF86形2灯定格出力 昼白色） 笠付形 連続調光・固定出力兼用形 | S94: PC8B+CE812NE-X24A | T94: PC8B | V94: 11200 | W94: 67800 | X94: =SUM(V94:W94) -> 79000 | Y94: 73.1 | AA94: 40000 | AB94: 11770 | AC94: 161
A95: FHF86W2灯 定格出力 笠付形 | B95: HPK11208VB-EN24 | C95: HPK11208VBEN24 | E95: 31800 | F95: 7200 | G95: 39000 | H95: 171 | J95: 12000 | K95: 17460 | L95: 102.1052632 | N95: 2 | O95: 800 | P95: 3600 | R95: LED110形（FHF86形2灯定格出力 昼白色） 笠付形 連続調光・固定出力兼用形 | S95: PC8B+CE812NE-X24A | T95: PC8B | V95: 11200 | W95: 67800 | X95: 79000 | Y95: 73.1 | AA95: 40000 | AB95: 11770 | AC95: 161
A96: FHF86W2灯 定格出力 笠付形 照度補正形 | B96: HPK11208V-PKN24 | C96: HPK11208VPKN24 | E96: 36800 | F96: 7200 | G96: =SUM(E96:F96) -> 44000 | H96: 171 | I96: 145 | J96: 12000 | K96: 17480 | L96: 102.2222222 | M96: 平均消費電力 | N96: 2 | O96: 800 | P96: 3600 | R96: LED110形（FHF86形2灯定格出力 昼白色） 笠付形 連続調光・固定出力兼用形 | S96: PC8B+CE812NE-X24A | T96: PC8B | V96: 11200 | W96: 67800 | X96: =SUM(V96:W96) -> 79000 | Y96: 73.1 | AA96: 40000 | AB96: 11770 | AC96: 161
A97: FHF86W2灯 定格出力(H) 笠付形 | B97: HPK11208VB-EN24 | C97: HPK11208VBEN24 | E97: 31800 | F97: 7200 | G97: 39000 | H97: 171 | J97: 12000 | K97: 17460 | L97: 102.1052632 | N97: 2 | O97: 800 | P97: 3600 | R97: LED110形（FHF86形2灯定格出力(H) 昼白色） 笠付形 連続調光・固定出力兼用形 | S97: PC8B+CE814NE-X24A | T97: PC8B | V97: 11200 | W97: 69500 | X97: 80700 | Y97: 87 | AA97: 40000 | AB97: 13730 | AC97: 157.8
A98: FHF86W2灯 定格出力(H) 笠付形 照度補正形 | B98: HPK11208V-PKN24 | C98: HPK11208VPKN24 | E98: 36800 | F98: 7200 | G98: 44000 | H98: 171 | I98: 145 | J98: 12000 | K98: 17480 | L98: 102.2222222 | M98: 平均消費電力 | N98: 2 | O98: 800 | P98: 3600 | R98: LED110形（FHF86形2灯定格出力(H) 昼白色） 笠付形 連続調光・固定出力兼用形 | S98: PC8B+CE814NE-X24A | T98: PC8B | V98: 11200 | W98: 69500 | X98: 80700 | Y98: 87 | AA98: 40000 | AB98: 13730 | AC98: 157.8
A99: FHF86W2灯 定格出力 直付開放形 | B99: HNM11220V-EN24P | C99: HNM11220V | E99: 42200 | F99: 7200 | G99: 49400 | H99: 171 | J99: 12000 | K99: 17050 | L99: 99.70760234 | N99: 2 | O99: 800 | P99: 3600 | R99: LED110形（FHF86形2灯定格出力 昼白色） 直付開放形 連続調光・固定出力兼用形 | S99: NC8C+CE812NE-X24A | T99: NC8C | V99: 21500 | W99: 67800 | X99: 89300 | Y99: 73.1 | AA99: 40000 | AB99: 11690 | AC99: 159.9
A100: FHF86W2灯 定格出力 直付開放形 照度補正形 | B100: HNM11220V-PKN24P | C100: HNM11220V | E100: 47200 | F100: 7200 | G100: 54400 | H100: 171 | I100: 145 | J100: 12000 | K100: 17050 | L100: 99.70760234 | M100: 平均消費電力 | N100: 2 | O100: 800 | P100: 3600 | R100: LED110形（FHF86形2灯定格出力 昼白色） 直付開放形 連続調光・固定出力兼用形 | S100: NC8C+CE812NE-X24A | T100: NC8C | V100: 21500 | W100: 67800 | X100: 89300 | Y100: 73.1 | AA100: 40000 | AB100: 11690 | AC100: 159.9
A101: FHF86W2灯 定格出力(H) 直付開放形 | B101: HNM11220V-EN24P | C101: HNM11220V | E101: 42200 | F101: 7200 | G101: 49400 | H101: 171 | J101: 12000 | K101: 17050 | L101: 99.70760234 | N101: 2 | O101: 800 | P101: =F101/N101 -> 3600 | R101: LED110形（FHF86形2灯定格出力(H) 昼白色） 直付開放形 連続調光・固定出力兼用形 | S101: NC8C+CE814NE-X24A | T101: NC8C | V101: 21500 | W101: 69500 | X101: 91000 | Y101: 87 | AA101: 40000 | AB101: 13640 | AC101: =ROUNDDOWN(AB101/Y101,1) -> 156.7
A102: FHF86W2灯 定格出力(H) 直付開放形 照度補正形 | B102: HNM11220V-PKN24P | C102: HNM11220V | E102: 47200 | F102: 7200 | G102: 54400 | H102: 171 | I102: 145 | J102: 12000 | K102: 17050 | L102: 99.70760234 | M102: 平均消費電力 | N102: 2 | O102: 800 | P102: 3600 | R102: LED110形（FHF86形2灯定格出力(H) 昼白色） 直付開放形 連続調光・固定出力兼用形 | S102: NC8C+CE814NE-X24A | T102: NC8C | V102: 21500 | W102: 69500 | X102: 91000 | Y102: 87 | AA102: 40000 | AB102: 13640 | AC102: 156.7
C105: ■2014年4月発行施設用カタログ(LL-809(H))掲載機種
C106: ・朱記部分は、ランプ形式、全光束、エネルギー消費効率が変更となっているもの。
C108: （注）2014年4月発行施設用カタログ(LL-809(H))に掲載されていない機種の、ランプ形式、全光束、エネルギー消費効率は従来のままとする。
C111: ■従来のラピッド式器具との比較については、2014年10月発行LED照明総合カタログ(LL-816(H))の経済比較例に掲載されている下記機種に限定する。
C112: （1）NM4203-DSC ：但し、本体価格（ランプ別）は、現行HNM4205MEN14と同一価格（\12,500）となっている。（AS400では\12,640）⇒カタログに合わせ\12,500とする。（2014.10.15環商企）

Sheet ｸﾞﾗﾌ (hidden)
A3: 使用年数 | B3: 0 | C3: 1 | D3: 2 | E3: 3 | F3: 4 | G3: 5 | H3: 6 | I3: 7 | J3: 8 | K3: 9 | L3: 10 | M3: 11 | N3: 12 | O3: 13 | P3: 14 | Q3: 15
A4: 蛍光灯 | B4: 0 | C4: =IF(交換形LED!$C37="","",B4+交換形LED!$C37/10000) ->  | D4: =IF(交換形LED!$C37="","",C4+交換形LED!$C37/10000) ->  | E4: =IF(交換形LED!$C37="","",D4+交換形LED!$C37/10000) ->  | F4: =IF(交換形LED!$C37="","",E4+交換形LED!$C37/10000) ->  | G4: =IF(交換形LED!$C37="","",F4+交換形LED!$C37/10000) ->  | H4: =IF(交換形LED!$C37="","",G4+交換形LED!$C37/10000) ->  | I4: =IF(交換形LED!$C37="","",H4+交換形LED!$C37/10000) ->  | J4: =IF(交換形LED!$C37="","",I4+交換形LED!$C37/10000) ->  | K4: =IF(交換形LED!$C37="","",J4+交換形LED!$C37/10000) ->  | L4: =IF(交換形LED!$C37="","",K4+交換形LED!$C37/10000) ->  | M4: =IF(交換形LED!$C37="","",L4+交換形LED!$C37/10000) ->  | N4: =IF(交換形LED!$C37="","",M4+交換形LED!$C37/10000) ->  | O4: =IF(交換形LED!$C37="","",N4+交換形LED!$C37/10000) ->  | P4: =IF(交換形LED!$C37="","",O4+交換形LED!$C37/10000) ->  | Q4: =IF(交換形LED!$C37="","",P4+交換形LED!$C37/10000) -> 
A5: LED | B5: =IF(交換形LED!I39="","",交換形LED!I39/10000) -> 0 | C5: =IF(交換形LED!$I37="","",B5+交換形LED!$I37/10000) ->  | D5: =IF(交換形LED!$I37="","",C5+交換形LED!$I37/10000) ->  | E5: =IF(交換形LED!$I37="","",D5+交換形LED!$I37/10000) ->  | F5: =IF(交換形LED!$I37="","",E5+交換形LED!$I37/10000) ->  | G5: =IF(交換形LED!$I37="","",F5+交換形LED!$I37/10000) ->  | H5: =IF(交換形LED!$I37="","",G5+交換形LED!$I37/10000) ->  | I5: =IF(交換形LED!$I37="","",H5+交換形LED!$I37/10000) ->  | J5: =IF(交換形LED!$I37="","",I5+交換形LED!$I37/10000) ->  | K5: =IF(交換形LED!$I37="","",J5+交換形LED!$I37/10000) ->  | L5: =IF(交換形LED!$I37="","",K5+交換形LED!$I37/10000) ->  | M5: =IF(交換形LED!$I37="","",L5+交換形LED!$I37/10000) ->  | N5: =IF(交換形LED!$I37="","",M5+交換形LED!$I37/10000) ->  | O5: =IF(交換形LED!$I37="","",N5+交換形LED!$I37/10000) ->  | P5: =IF(交換形LED!$I37="","",O5+交換形LED!$I37/10000) ->  | Q5: =IF(交換形LED!$I37="","",P5+交換形LED!$I37/10000) -> 

Sheet Sheet1 (hidden)
